[Event "DFMMLV 2017"]
[Site "Braunfels"]
[Date "2017.06.15"]
[Round "1"]
[White "Frank, Tena"]
[Black "Mikliaeva, Darja S"]
[Result "0-1"]
[ECO "D45"]
[WhiteElo "1982"]
[BlackElo "2133"]
[Annotator "NA"]
[PlyCount "78"]
[EventDate "2017.??.??"]
[EventType "team-tourn"]
[EventCountry "GER"]
[SourceTitle "playchess.com"]
[Source "ChessBase"]
[SourceQuality "1"]
[TimeControl "40/5400+30:1800+30"]

{[%evp 9,78,17,20,20,7,10,8,1,6,11,21,4,0,0,21,10,32767,0,32767,34,32767,47,32767,32767,59,32767,58,32767,71,32767,108,88,32767,105,116,120,110,106,32767,32767,32767,-37,-53,-4,-54,32767,32767,32767,32767,32767,0,32767,32767,32767,32767,32767,-397,-372,-371,-416,32767,32767,32767,32767,32767,32767,32767,32767,32767,-539,-452]} 1. d4 {[%emt 0:00:00]} d5 {[%emt 0:00:30]} 2. c4 {[%emt 0:00:08]} e6 {[%emt 0:00:11]} 3. Nc3 {[%emt 0:00:17]} c6 {[%emt 0:00:05]} 4. e3 {[%emt 0:00:08]} Nf6 {[%emt 0:00:05]} 5. Nf3 {[%emt 0:00:37]} Bd6 {[%emt 0:01:20]} 6. Qc2 {[%emt 0:03:08]} O-O {[%emt 0:00:50]} 7. Bd3 {[%emt 0:00:16]} dxc4 {[%emt 0:01:38]} 8. Bxc4 {[%emt 0:00:06]} Nbd7 {[%emt 0:09:46]} 9. O-O {[%emt 0:02:56]} b5 {[%emt 0:03:33]} 10. Bd3 {[%emt 0:01:34]} Bb7 {[%emt 0:02:55]} 11. Ng5 {[%emt 0:10:41] LiveBook: 56 Games D46: Semi-Slav: 5 e3 Nbd7 6 Bd3, Black avoids the Meran} (11. a3 Rc8 12. b4 a5 13. Rb1 c5 14. bxc5 Bxf3 15. gxf3 Nxc5 16. dxc5 Rxc5 17. Rxb5 Nd5 18. Rxc5 Qg5+ 19. Kh1 Qh5 20. f4 Qf3+ 21. Kg1 Qg4+ 22. Kh1 Qf3+ 23. Kg1 {½-½ (23) So,W (2770)-Giri,A (2782) Leuven 2016}) 11... h6 {[%emt 0:01:06]} 12. Nge4 {[%emt 0:00:53]} Be7 {[%emt 0:15:02]} 13. a3 {[%emt 0:08:16]} a6 {[%emt 0:03:30]} 14. b4 {[%emt 0:06:19]} Rc8 $146 {[%emt 0:05:05]} ({Predecessor:} 14... a5 15. Rb1 axb4 16. axb4 Nd5 17. Nc5 Nxc5 18. dxc5 Nxc3 19. Qxc3 Bf6 {1-0 (51) Levin,E (2508)-Siva,M (2392) St Petersburg 2015}) 15. f4 {[%emt 0:05:30]} Nd5 {[%emt 0:08:42]} 16. Bd2 {[%emt 0:18:40]} f5 {[%emt 0:01:51]} 17. Nc5 {[%emt 0:03:13]} Nxc5 {[%emt 0:05:12]} 18. dxc5 {[%emt 0:03:25]} Bf6 {[%emt 0:10:22]} 19. Rae1 {[%emt 0:03:50]} a5 {[%emt 0:02:00]} 20. bxa5 {[%emt 0:06:53]} Ba6 {[%emt 0:03:28]} 21. Ne2 {[%emt 0:02:58]} (21. Nxd5 $18 Qxd5 22. Rd1) 21... Qd7 {[%emt 0:05:59]} 22. e4 {[%emt 0:13:58]} fxe4 {[%emt 0:00:49]} 23. Bxe4 {[%emt 0:00:09]} Rcd8 {[%emt 0:00:29]} 24. Bc1 {[%emt 0:02:04]} b4 {[%emt 0:01:08]} 25. Bxd5 {[%emt 0:01:00]} Qxd5 {[%emt 0:00:15]} 26. axb4 {[%emt 0:00:12]} Bd3 {[%emt 0:01:36]} 27. Qd1 {[%emt 0:03:49]} Qc4 {[%emt 0:00:47]} 28. Bd2 {[%emt 0:00:21]} Rd7 {[%emt 0:02:53]} 29. Rf2 {[%emt 0:00:53]} Rfd8 {[%emt 0:00:37]} 30. Qc1 {[%emt 0:00:30]} Bc2 $11 {[%emt 0:02:38]} 31. Ng3 {[%emt 0:01:55]} Qb3 {[%emt 0:03:31]} 32. Nf1 {[%emt 0:00:24]} Bb2 {[%emt 0:00:19]} 33. Re3 {[%emt 0:00:41]} Bxc1 {[%emt 0:01:12]} 34. Rxb3 {[%emt 0:00:06]} Bxb3 {[%emt 0:03:00]} 35. Bxc1 {[%emt 0:00:05]} Rd1 {[%emt 0:00:31]} 36. Bb2 {[%emt 0:01:25]} Bc4 37. g3 Rb1 38. Be5 Rdd1 39. Kg2 $19 Rxf1 0-1

[Event "DFMMLV 2017"]
[Site "Braunfels"]
[Date "2017.06.15"]
[Round "1"]
[White "Spiel, Marianne"]
[Black "Steimbach, Isabel"]
[Result "1/2-1/2"]
[ECO "C41"]
[WhiteElo "1953"]
[BlackElo "1972"]
[Annotator "NA RC"]
[PlyCount "88"]
[EventDate "2017.??.??"]
[EventType "team-tourn"]
[EventCountry "GER"]
[SourceTitle "playchess.com"]
[Source "ChessBase"]
[SourceQuality "1"]
[TimeControl "40/5400+30:1800+30"]

1. e4 {[%emt 0:00:00]} e5 {[%emt 0:00:03]} 2. Nf3 {[%emt 0:00:00]} d6 {[%emt 0:00:02]} 3. d4 {[%emt 0:00:10]} exd4 {[%emt 0:00:04]} 4. Nxd4 {[%emt 0:00:15]} Nf6 {[%emt 0:00:04]} 5. Nc3 {[%emt 0:00:26]} Be7 {[%emt 0:00:06]} 6. Be2 {[%emt 0:01:11]} O-O {[%emt 0:00:07]} 7. Be3 {[%emt 0:01:35]} Re8 {[%emt 0:00:36] LiveBook: 20 Games C41: Philidor Defence} 8. O-O {[%emt 0:01:50]} (8. Qd2 Bf8 9. f3 d5 10. O-O-O c5 11. Nb3 d4 12. Bg5 Be6 13. e5 h6 14. Bh4 Bxb3 15. exf6 {0-1 (81) Polgar,J (2711)-Kazhgaleyev,M (2640) Almaty 2008}) 8... Bf8 {[%emt 0:01:15]} 9. Bf3 {[%emt 0:03:45]} Nbd7 {[%emt 0:02:21]} 10. g3 {[%emt 0:05:32]} Ne5 $146 {[%emt 0:09:19]} ({Predecessor:} 10... Nc5 11. Bg5 h6 12. Bxf6 Qxf6 13. Re1 c6 14. b4 Ne6 15. Nxe6 Bxe6 {0-1 (50) Borondo Garcia,R (1897)-Perez Garcia,R (2198) Sevilla 2017}) 11. Bg2 {[%emt 0:02:14]} Nfg4 {[%emt 0:05:52]} 12. Bc1 {[%emt 0:03:48]} c6 {[%emt 0:04:32]} 13. h3 {[%emt 0:03:28]} Nf6 {[%emt 0:01:10]} 14. f4 {[%emt 0:05:43]} Ng6 {[%emt 0:01:56]} 15. Nb3 {[%emt 0:05:04]} h5 {[%emt 0:09:17]} 16. Qf3 {[%emt 0:03:32]} Be6 {[%emt 0:05:05]} 17. Be3 {[%emt 0:01:53]} Qc8 {[%emt 0:01:51]} 18. Kh2 {[%emt 0:01:16]} Bc4 {[%emt 0:13:38]} 19. Rfd1 {[%emt 0:03:27]} h4 {[%emt 0:02:17]} 20. g4 {[%emt 0:03:13]} d5 {[%emt 0:00:32]} 21. e5 {[%emt 0:02:28]} Nd7 {[%emt 0:00:57]} 22. Qf2 {[%emt 0:09:30]} f6 {[%emt 0:01:48]} 23. exf6 {[%emt 0:04:57]} Nxf6 {[%emt 0:00:19]} 24. Bd4 {[%emt 0:00:54]} Bd6 {[%emt 0:02:26]} 25. Kh1 {[%emt 0:05:32]} Bxf4 {[%emt 0:01:39]} 26. Bxf6 {[%emt 0:01:41]} gxf6 {[%emt 0:00:07]} 27. Nd4 {[%emt 0:00:36]} Qd8 {[%emt 0:08:40]} 28. Re1 {[%emt 0:06:10]} Qb6 {[%emt 0:13:29]} (28... Re5 $17 29. Rxe5 fxe5) 29. Na4 {[%emt 0:03:17]} Qa5 {[%emt 0:04:40]} 30. b3 {[%emt 0:02:15]} Bg3 {[%emt 0:03:59]} 31. Rxe8+ {[%emt 0:04:18]} Rxe8 {[%emt 0:00:05]} 32. Qg1 {[%emt 0:00:13]} Ba6 {[%emt 0:01:18]} 33. Nf5 {[%emt 0:00:44]} Bf4 {[%emt 0:01:22]} 34. Nc5 {[%emt 0:02:41]} Re2 {[%emt 0:01:35]} 35. Nxa6 {[%emt 0:01:36]} bxa6 {[%emt 0:00:31]} 36. Qd1 {[%emt 0:01:39] [#]} Re5 $2 {[%emt 0:02:31]} (36... Qd2 $1 $19 37. Qxd2 Rxd2) 37. Qf1 {[%emt 0:01:25]} Qc3 {[%emt 0:01:01]} 38. Qd1 {[%emt 0:03:50]} Bd2 {[%emt 0:00:18]} 39. Qg1 {[%emt 0:01:15]} Be1 {[%emt 0:02:06]} (39... a5 $17 40. Rf1 Be3 41. Nxe3 Rxe3) 40. Rd1 {[%emt 0:01:08]} Nf4 {[%emt 0:30:41]} 41. Qxa7 {[%emt 0:31:31]} Rxf5 {[%emt 0:00:00]} 42. gxf5 {[%emt 0:00:00] [#]} Nxg2 {[%emt 0:00:00]} (42... Qg3 $1 $17 {[%csl Gf4][%cal Rg3g2]} 43. Qg1 Bf2) 43. Qg1 $11 {[%emt 0:00:00]} Qxh3+ {[%emt 0:00:00]} 44. Qh2 {[%emt 0:00:00]} Qxh2+ {[%emt 0:00:00]} 1/2-1/2

[Event "DFMMLV 2017"]
[Site "Braunfels"]
[Date "2017.06.15"]
[Round "1"]
[White "Heil, Marina"]
[Black "Schulz, Theresa Charlotte"]
[Result "1/2-1/2"]
[ECO "B23"]
[WhiteElo "1890"]
[BlackElo "1595"]
[Annotator "NA"]
[PlyCount "58"]
[EventDate "2017.??.??"]
[EventType "team-tourn"]
[EventCountry "GER"]
[SourceTitle "playchess.com"]
[Source "ChessBase"]
[SourceQuality "1"]
[TimeControl "40/5400+30:1800+30"]

1. e4 {[%emt 0:00:00]} c5 {[%emt 0:00:04]} 2. Nc3 {[%emt 0:00:00]} Nc6 {[%emt 0:00:06]} 3. f4 {[%emt 0:00:00]} g6 {[%emt 0:00:06]} 4. Nf3 {[%emt 0:00:06]} Bg7 {[%emt 0:00:07]} 5. Bb5 {[%emt 0:00:33]} Nd4 {[%emt 0:01:32] LiveBook: 1131 Games} 6. a4 {[%emt 0:00:41]} e6 {[%emt 0:01:39]} 7. O-O {[%emt 0:01:20]} Ne7 {[%emt 0:01:04] B23: Closed Sicilian: Lines without g3} 8. e5 {[%emt 0:02:41]} (8. Nxd4 cxd4 9. Ne2 O-O 10. Ng3 d5 11. b3 dxe4 12. Nxe4 d3 13. c3 a6 14. Bc4 b5 15. axb5 Bb7 16. bxa6 Bxe4 17. Ba3 {0-1 (30) Sek,Z (2565)-Hamarat,T (2595) Yugoslavia 1998}) 8... Nxf3+ {[%emt 0:04:58]} 9. Qxf3 {[%emt 0:00:22]} O-O $146 {[%emt 0:01:21]} ({Predecessor:} 9... a6 10. Bc4 d5 11. exd6 Qxd6 12. d3 O-O 13. Ne4 Qc7 14. c3 b6 15. Qf2 {0-1 (26) Jackson,O (2133)-Ypma,P (2257) Delft 2015}) 10. Ne4 {[%emt 0:00:42]} Qc7 {[%emt 0:01:39]} 11. d3 {[%emt 0:00:47]} Nf5 {[%emt 0:02:03]} 12. g4 {[%emt 0:05:40]} Nd4 {[%emt 0:02:58]} 13. Qf2 {[%emt 0:01:17]} b6 {[%emt 0:09:43]} 14. Be3 {[%emt 0:05:26]} Nxb5 {[%emt 0:04:12]} 15. axb5 {[%emt 0:00:09]} Bb7 {[%emt 0:00:54]} 16. Nd6 {[%emt 0:14:11]} f6 {[%emt 0:04:22]} 17. Nxb7 {[%emt 0:02:48]} Qxb7 {[%emt 0:00:17]} 18. exf6 {[%emt 0:00:24]} Bxf6 {[%emt 0:00:59]} 19. Ra2 {[%emt 0:03:33]} a6 {[%emt 0:06:02]} 20. bxa6 {[%emt 0:12:55]} Rxa6 {[%emt 0:00:58]} 21. Rxa6 {[%emt 0:00:17]} Qxa6 {[%emt 0:00:10]} 22. d4 {[%emt 0:01:41]} c4 {[%emt 0:08:07]} 23. Qg2 {[%emt 0:07:10]} Qa8 {[%emt 0:06:04]} 24. Qe2 {[%emt 0:08:04]} Qd5 {[%emt 0:04:54]} 25. c3 {[%emt 0:01:53]} b5 {[%emt 0:04:53]} 26. Qc2 {[%emt 0:04:51]} Be7 {[%emt 0:05:13]} 27. Rf2 {[%emt 0:06:33]} Bh4 {[%emt 0:03:22]} 28. Rf1 $15 {[%emt 0:01:00]} Be7 {[%emt 0:00:09]} 29. Rf2 {[%emt 0:03:15]} Bh4 {[%emt 0:00:09]} 1/2-1/2

[Event "DFMMLV 2017"]
[Site "Braunfels"]
[Date "2017.06.15"]
[Round "1"]
[White "Kail, Sindy"]
[Black "Schneider, Birgit"]
[Result "1/2-1/2"]
[ECO "B35"]
[WhiteElo "1850"]
[BlackElo "1924"]
[Annotator "NA"]
[PlyCount "81"]
[EventDate "2017.??.??"]
[EventType "team-tourn"]
[EventCountry "GER"]
[SourceTitle "playchess.com"]
[Source "ChessBase"]
[SourceQuality "1"]
[TimeControl "40/5400+30:1800+30"]

{[%evp 8,79,28,19,46,22,4,28,48,40,50,35,44,34,28,10,19,10,32767,32767,0,0,17,32767,32767,32767,32767,-40,32767,32767,32767,32767,-104,32767,-109,-102,32767,32767,32767,-106,-108,-142,-150,-210,32767,32767,-156,32767,32767,-125,-32,32767,32767,-107,32767,32767,32767,32767,-243,-259,-364,32767,-133,-145,-221,32767,-97,32767,32767,32767,-80,32767,32767,-195]} 1. e4 {[%emt 0:00:00]} c5 {[%emt 0:00:07]} 2. Nf3 {[%emt 0:00:00]} Nc6 {[%emt 0:00:13]} 3. d4 {[%emt 0:00:29]} cxd4 {[%emt 0:00:09]} 4. Nxd4 {[%emt 0:00:14]} g6 {[%emt 0:00:15]} 5. Be3 {[%emt 0:01:29]} Bg7 {[%emt 0:01:22]} 6. Nc3 {[%emt 0:01:11]} Nf6 {[%emt 0:01:17]} 7. Bc4 {[%emt 0:02:04]} Qa5 {[%emt 0:07:10]} 8. O-O {[%emt 0:04:29]} O-O {[%emt 0:02:27]} 9. Bb3 {[%emt 0:01:59]} d6 {[%emt 0:02:38]} 10. h3 {[%emt 0:04:45]} Bd7 {[%emt 0:03:58]} 11. f4 {[%emt 0:03:09]} Nxd4 {[%emt 0:04:55]} 12. Bxd4 {[%emt 0:01:43]} Bc6 {[%emt 0:13:08]} 13. Qd3 {[%emt 0:11:35]} Nd7 {[%emt 0:06:12]} 14. Bxg7 {[%emt 0:01:34]} Kxg7 {[%emt 0:07:25] LiveBook: 13 Games [#]} 15. g4 $146 {B35: Sicilian: Accelerated Dragon with 5 Nc3: main line} ({Predecessor:} 15. Nd5 Qc5+ 16. Kh1 e6 17. Nc3 Nf6 18. Rad1 Rad8 19. f5 Qe5 20. Rde1 b5 21. Nd5 Nh5 22. Re3 a5 {1-0 (35) Morozevich,A (2760)-Carlsen,M (2864) Moscow 2013}) 15... Qc5+ 16. Kh2 {[%emt 0:02:50]} Rad8 {[%emt 0:07:27]} 17. Ne2 {[%emt 0:03:25]} Bb5 {[%emt 0:08:24]} 18. Qd2 {[%emt 0:19:05]} Nf6 {[%emt 0:07:57]} 19. Bd5 {[%emt 0:07:02]} e6 {[%emt 0:06:21]} 20. b4 {[%emt 0:05:59]} Qc7 {[%emt 0:06:04]} 21. g5 {[%emt 0:02:17]} Nxd5 {[%emt 0:02:01]} 22. exd5 {[%emt 0:00:04]} Bxe2 {[%emt 0:01:45]} 23. Qxe2 {[%emt 0:00:45]} exd5 {[%emt 0:01:00]} 24. f5 {[%emt 0:01:51]} Rde8 {[%emt 0:00:59]} 25. Qf2 {[%emt 0:02:25]} Qc4 {[%emt 0:01:42]} 26. Rae1 {[%emt 0:01:06]} Rxe1 {[%emt 0:02:11]} 27. Rxe1 {[%emt 0:00:25]} d4 {[%emt 0:02:16]} 28. Re4 {[%emt 0:00:57]} Rc8 {[%emt 0:00:12]} (28... Qxb4 $17 29. f6+ Kg8 30. Rxd4 Qa5) 29. f6+ {[%emt 0:02:21]} Kh8 {[%emt 0:01:32]} 30. Rxd4 {[%emt 0:08:32]} (30. Qe2 $1 $11 h6 31. Qxc4 Rxc4 32. Re8+ Kh7 33. Re7 hxg5 34. Rxf7+ Kg8 35. Rxb7) 30... Qxc2 {[%emt 0:00:27]} 31. Rd2 {[%emt 0:00:01]} Qc1 {[%emt 0:01:36]} 32. Qg2 {[%emt 0:04:14]} h5 {[%emt 0:00:14]} 33. Qe2 {[%emt 0:01:42]} Kh7 {[%emt 0:00:43]} 34. Qd3 {[%emt 0:00:58]} Rc6 {[%emt 0:00:53]} (34... Qe1 $19 {is more deadly.} 35. Qe2 Qh4) 35. Qd5 {[%emt 0:00:07] [#]} Kg8 $1 {[%emt 0:00:39]} 36. b5 {[%emt 0:03:46]} Rc2 $2 {[%emt 0:00:23]} (36... Rc3 $19 {and Black stays clearly on top.} 37. Qxd6 Qe1) 37. Rxc2 {[%emt 0:00:01]} Qxc2+ {[%emt 0:00:01]} 38. Kg3 {[%emt 0:00:20]} Qc7 $17 {[%emt 0:01:40]} (38... Qc1 $19 {is more deadly.} 39. a4 Qe3+ 40. Kh2 Qf4+ 41. Kh1 Qg3) 39. Kf3 {[%emt 0:01:33]} Kf8 {[%emt 0:00:18]} 40. Qe4 $2 {[%emt 0:00:28]} (40. Ke2 $11) 40... Qd7 41. Kg3 1/2-1/2

[Event "DFMMLV 2017"]
[Site "Braunfels"]
[Date "2017.06.15"]
[Round "1"]
[White "Hielscher, Ursula"]
[Black "Barpiyeva, Gulsana"]
[Result "1/2-1/2"]
[ECO "A57"]
[WhiteElo "1835"]
[BlackElo "2109"]
[Annotator "NA"]
[PlyCount "69"]
[EventDate "2017.??.??"]
[EventType "team-tourn"]
[EventCountry "GER"]
[SourceTitle "playchess.com"]
[Source "ChessBase"]
[SourceQuality "1"]
[TimeControl "40/5400+30:1800+30"]

{[%evp 8,54,56,1,115,112,95,106,107,84,83,71,97,69,74,69,68,35,65,36,55,32767,32767,32767,148,136,32767,143,179,190,32767,198,32767,32767,198,32767,32767,32767,32767,32767,32767,32767,32767,175,209,32767,32767,32767,137]} 1. d4 {[%emt 0:00:00]} Nf6 {[%emt 0:00:23]} 2. c4 {[%emt 0:00:00]} c5 {[%emt 0:00:11]} 3. d5 {[%emt 0:00:00]} b5 {[%emt 0:00:20]} 4. e4 {[%emt 0:00:52]} d6 {[%emt 0:01:19]} ({Better is} 4... Nxe4 $11 5. Nf3 bxc4) 5. cxb5 {[%emt 0:00:28]} (5. Nd2 $14) 5... a6 {[%emt 0:02:21]} (5... Nxe4 $11 6. Bd3 Nf6) 6. Nc3 {[%emt 0:01:00]} g6 {[%emt 0:00:42]} 7. Nf3 {[%emt 0:03:54]} Bg7 {[%emt 0:00:58]} 8. Bd3 {[%emt 0:01:59]} O-O {[%emt 0:01:47]} 9. O-O {[%emt 0:00:15]} axb5 {[%emt 0:00:18]} 10. Bxb5 {[%emt 0:00:26]} Ba6 {[%emt 0:02:18]} 11. Bxa6 {[%emt 0:01:42]} Nxa6 {[%emt 0:00:16]} 12. Re1 {[%emt 0:04:08]} Nd7 {[%emt 0:04:49] LiveBook: 5 Games} 13. Bf4 {[%emt 0:08:21]} Qb6 {[%emt 0:05:23] E91: King's Indian: Classical: 6 Be2, unusual replies including 6...c5 and 6...Bg4} (13... c4 14. Qd2 Nb4 15. Bh6 Nd3 16. Re2 e5 17. dxe6 fxe6 18. Bxg7 Kxg7 19. Qe3 Qf6 20. Rd1 Rfb8 21. Rc2 {½-½ (59) Van Wely,L (2655)-Nakamura,H (2710) Amsterdam 2009}) 14. Rb1 {[%emt 0:02:31]} Qb4 {[%emt 0:11:21]} 15. a3 $146 {[%emt 0:02:19]} ({Predecessor:} 15. Qc1 c4 16. Bh6 Nac5 17. Bxg7 Kxg7 18. Qd2 Nd3 19. Re3 Rfb8 20. Nd4 N3e5 21. Rh3 {½-½ (36) Kastek,T (2255)-Kunsztowicz,U (2305) Hamburg 1988}) 15... Qb7 {[%emt 0:13:06]} ({Better is} 15... Qb8) 16. e5 {[%emt 0:02:51]} dxe5 {[%emt 0:11:16]} 17. Nxe5 {[%emt 0:00:49]} Nb6 {[%emt 0:04:15]} 18. Nc6 {[%emt 0:04:58]} e6 {[%emt 0:05:25]} 19. Na5 {[%emt 0:06:04]} Qd7 {[%emt 0:02:28]} 20. dxe6 {[%emt 0:02:26]} Qxd1 {[%emt 0:03:02]} 21. Rbxd1 {[%emt 0:01:16]} fxe6 {[%emt 0:00:48]} 22. Rxe6 {[%emt 0:03:44]} Rxf4 {[%emt 0:02:39]} 23. Rxb6 {[%emt 0:00:13]} Bd4 {[%emt 0:00:56]} 24. Rf1 {[%emt 0:04:17]} c4 {[%emt 0:09:32]} 25. Rc6 {[%emt 0:01:49]} Nc5 {[%emt 0:02:52]} 26. Ne2 {[%emt 0:02:01]} Bxf2+ {[%emt 0:05:30]} 27. Rxf2 {[%emt 0:00:31]} Rxf2 $16 {[%emt 0:00:32]} 28. Kxf2 {[%emt 0:00:13]} Rxa5 {[%emt 0:00:50]} 29. Ke3 {[%emt 0:01:21]} Nd3 {[%emt 0:01:21]} 30. Rxc4 {[%emt 0:00:59]} Nxb2 {[%emt 0:00:28]} 31. Rc8+ {[%emt 0:00:47]} Kg7 {[%emt 0:00:47]} 32. Rc7+ {[%emt 0:01:11]} Kg8 {[%emt 0:00:40]} 33. Rc8+ {[%emt 0:00:49]} Kg7 {[%emt 0:00:08]} 34. Rc7+ {[%emt 0:00:14]} Kg8 {[%emt 0:00:08]} 35. Rc8+ {[%emt 0:00:05] Ra4} 1/2-1/2

[Event "DFMMLV 2017"]
[Site "Braunfels"]
[Date "2017.06.15"]
[Round "1"]
[White "Diller, Marianne"]
[Black "Vollstaedt-Klein, Sabine"]
[Result "0-1"]
[ECO "A84"]
[WhiteElo "1823"]
[BlackElo "1879"]
[Annotator "NA RC"]
[PlyCount "114"]
[EventDate "2017.??.??"]
[EventType "team-tourn"]
[EventCountry "GER"]
[SourceTitle "playchess.com"]
[Source "ChessBase"]
[SourceQuality "1"]
[TimeControl "40/5400+30:1800+30"]

{[%evp 8,112,33,25,31,27,26,32767,32767,32767,52,24,45,29,56,32767,32767,32767,32767,32767,33,10,32767,7,10,8,12,8,29,32767,32767,32767,32767,-27,32767,-112,-58,32767,-87,32767,32767,32767,32767,32767,32767,32767,32767,32767,32767,-412,-308,32767,32767,-332,-253,32767,-113,-340,-307,32767,32767,32767,32767,-408,-468,32767,-495,32767,32767,-633,-466,-467,-427,-516,32767,32767,-445,32767,32767,-462,-443,-473,-493,-451,32767,32767,-386,-345,-408,-390,-373,32767,32767,-255,32767,-256,-247,-248,32767,-288,-256,-335,32767,-403,-314,-311,-379]} 1. d4 {[%emt 0:00:00]} f5 {[%emt 0:00:06]} 2. c4 {[%emt 0:00:05]} g6 {[%emt 0:01:00]} 3. Nc3 {[%emt 0:01:04]} Bg7 {[%emt 0:01:37]} 4. Nf3 {[%emt 0:02:01]} Nf6 {[%emt 0:00:25]} 5. e3 {[%emt 0:00:40]} O-O {[%emt 0:01:21] LiveBook: 55 Games} 6. Be2 {[%emt 0:00:22] A85: Dutch Defence: 2 c4 Nf6 3 Nc3} e6 {[%emt 0:03:54]} (6... b6 7. O-O Bb7 8. b4 e6 9. Qb3 Kh8 10. Bb2 Qe7 11. a4 Nc6 12. Ba3 Nd8 13. a5 d6 14. c5 Ne4 15. Nxe4 Bxe4 {½-½ (52) Bukavshin,I (2655)-Dubov,D (2654) Chita 2015}) 7. O-O {[%emt 0:01:43]} d6 {[%emt 0:00:34]} 8. Qc2 {[%emt 0:06:01]} c6 {[%emt 0:02:02]} 9. b3 {[%emt 0:04:53]} Qc7 {[%emt 0:04:44]} 10. Bb2 $146 {[%emt 0:04:30]} ({Predecessor:} 10. Ba3 Re8 11. Rac1 d5 12. cxd5 exd5 13. Rfe1 a6 14. h3 Ne4 15. Nxd5 Qd8 16. Nf4 {1-0 (42) Kluss,E-Carmichael,I Malente 2004}) 10... Re8 {[%emt 0:01:33]} 11. Rfd1 {[%emt 0:08:42]} Nbd7 {[%emt 0:02:22]} 12. Rac1 {[%emt 0:06:03]} e5 {[%emt 0:02:24]} 13. d5 {[%emt 0:01:00]} c5 {[%emt 0:04:15]} 14. Nb5 {[%emt 0:01:22]} Qb8 {[%emt 0:03:22]} 15. Ng5 {[%emt 0:02:49]} a6 {[%emt 0:03:25]} 16. Nc3 {[%emt 0:00:07]} Nf8 {[%emt 0:00:51]} 17. a3 {[%emt 0:01:09]} e4 {[%emt 0:11:11]} 18. b4 {[%emt 0:01:14]} h6 {[%emt 0:00:16]} 19. Nh3 {[%emt 0:00:04]} b6 {[%emt 0:05:23]} 20. Bf1 {[%emt 0:00:39]} g5 {[%emt 0:01:27]} 21. g3 {[%emt 0:01:06]} (21. Ne2 $15) 21... Ng6 {[%emt 0:01:46]} 22. Kh1 {[%emt 0:02:33]} Qc7 {[%emt 0:04:58]} 23. Rb1 {[%emt 0:06:28]} Rb8 {[%emt 0:03:09]} 24. Rd2 {[%emt 0:01:17]} Ne5 {[%emt 0:02:16]} 25. bxc5 {[%emt 0:05:52]} bxc5 {[%emt 0:02:42]} 26. Ng1 {[%emt 0:00:11]} Qf7 {[%emt 0:01:56]} 27. Kg2 {[%emt 0:09:55]} Qh5 {[%emt 0:00:48]} 28. Qd1 $2 {[%emt 0:00:48]} (28. Nd1) 28... g4 {[%emt 0:03:35]} 29. h4 {[%emt 0:10:42]} gxh3+ {[%emt 0:04:39]} 30. Kh1 {[%emt 0:00:07]} h2 {[%emt 0:03:45]} 31. Nh3 {[%emt 0:00:46]} Nf3 {[%emt 0:02:44]} (31... Qf3+ $19 32. Qxf3 Nxf3) 32. Bc1 $2 {[%emt 0:09:45]} (32. Rc2 $17) 32... Rxb1 {[%emt 0:01:51]} ({Don't play} 32... Nxd2 33. Qxd2 Rxb1 34. Nxb1) 33. Nxb1 {[%emt 0:00:01]} Nxd2 {[%emt 0:00:33]} 34. Qxh5 {[%emt 0:00:48]} Nxh5 {[%emt 0:00:01]} 35. Nxd2 {[%emt 0:00:17]} Bc3 {[%emt 0:02:31]} 36. Kxh2 {[%emt 0:00:11]} Bd7 {[%emt 0:00:24]} 37. Ng1 {[%emt 0:00:42]} Rb8 {[%emt 0:00:21]} 38. Ne2 {[%emt 0:00:18]} Bxd2 {[%emt 0:00:23]} 39. Bxd2 {[%emt 0:00:01]} Nf6 {[%emt 0:00:54]} 40. Nc3 {[%emt 0:07:13]} Rb3 {[%emt 0:31:56]} 41. a4 {[%emt 0:30:11]} Ra3 {[%emt 0:00:42]} 42. a5 {[%emt 0:00:42]} Ng4+ {[%emt 0:00:28]} 43. Kg2 {[%emt 0:02:27]} Rxa5 {[%emt 0:02:59]} 44. f3 {[%emt 0:02:00]} exf3+ {[%emt 0:00:21]} 45. Kxf3 {[%emt 0:00:02]} Nh2+ {[%emt 0:01:46]} 46. Kf2 {[%emt 0:00:26]} Nxf1 {[%emt 0:01:31]} 47. Kxf1 {[%emt 0:00:02]} Kf7 {[%emt 0:00:22]} 48. Ke2 {[%emt 0:00:00]} Ra1 {[%emt 0:00:00]} 49. e4 {[%emt 0:00:00]} Kg6 {[%emt 0:00:00]} 50. Bf4 {[%emt 0:00:00]} Ra3 {[%emt 0:00:00]} 51. exf5+ {[%emt 0:00:00]} Bxf5 {[%emt 0:00:00]} ({Weaker is} 51... Kxf5 52. Kd2 $17) 52. Kd2 {[%emt 0:00:00]} Rb3 {[%emt 0:00:00]} 53. Bxd6 {[%emt 0:00:00]} Rb4 {[%emt 0:00:00]} 54. Be5 {[%emt 0:00:00]} Rxc4 {[%emt 0:00:00]} 55. d6 {[%emt 0:00:00]} h5 {[%emt 0:00:00]} 56. Nd5 {[%emt 0:00:00]} Kf7 $19 {[%emt 0:00:00]} 57. Bf4 {[%emt 0:00:00]} Rd4+ {[%emt 0:00:00]} 0-1